Cogmind - Beta 14 @@@ ROGUE MODE // 2024.10.17 @ 15:42:10 Player: Zane Result: Destroyed by Z8-56K(R) with Subdweller Laser Performance ------------- Evolutions (0) 0 Regions Visited (2) 400 Robots Destroyed (31) 155 Value Destroyed (640) 640 Prototype IDs (11) 220 Alien Tech Used (0) 0 Bonus (0) 0 TOTAL SCORE: 1415 Bonus ------- None Cogmind --------- Core Integrity 0/250 Matter 52/300 Energy 250/250 System Corruption 0% Temperature Cool (6) Movement Rolling (130) Ox2 Location -10/Subcaves Parts ------- > --- POWER (1) -------- Ion Engine > --- PROPULSION (2) --- Spiked Treads Subdweller Monowheel > --- UTILITY (2) ------ High-capacity Storage Unit Signal Interpreter > --- WEAPON (2) ------- Light Assault Rifle Heavy Battle Rifle > --- INVENTORY (20) --- Subdweller Power Source Subdweller Power Source Subdweller Power Source Aluminum Leg Aluminum Leg Huge Storage Unit Subdweller Optics Improved Terrain Scanner Power Shielding Light Armor Plating Light Armor Plating Makeshift Light Armor Plating Hacking Suite Power Bank Subdweller Beam Cannon Subdweller Machine Gun Light Cannon Mining Laser Welding Torch Mining Claw Peak State ------------ > --- POWER ------------ Ion Engine > --- PROPULSION ------- Spiked Treads Subdweller Monowheel > --- UTILITY ---------- High-capacity Storage Unit Signal Interpreter > --- WEAPON ----------- Light Assault Rifle Heavy Battle Rifle > --- INVENTORY -------- Subdweller Power Source Subdweller Power Source Subdweller Power Source Aluminum Leg Aluminum Leg Huge Storage Unit Subdweller Optics Improved Terrain Scanner Power Shielding Light Armor Plating Light Armor Plating Makeshift Light Armor Plating Hacking Suite Power Bank Subdweller Beam Cannon Subdweller Machine Gun Light Cannon Mining Laser Welding Torch Mining Claw [Rating: 16] Favorites ----------- Power Ion Engine Engine Ion Engine Propulsion Spiked Treads Treads Spiked Treads Leg Aluminum Leg Wheel Subdweller Monowheel Utility High-capacity Storage Unit Device Seismic Detector Storage High-capacity Storage Unit Processor Signal Interpreter Weapon Light Assault Rifle Energy Gun EM Pulse Gun Energy Cannon Subdweller Beam Cannon Ballistic Gun Light Assault Rifle Ballistic Cannon Light Cannon Launcher Grenade Launcher Special Weapon Mining Laser Slashing Weapon Mining Claw Build | -11 -10 -10 ------- Run | Yrd Mat Sub Slots Evolved . | . . . Power . | . . . Propulsion . | . . . Utility . | . . . Weapon . | . . . Parts Attached 41 | 8 12 21 Power 7 | 1 3 3 Engine 7 | 1 3 3 Core . | . . . Reactor . | . . . Propulsion 10 | 2 2 6 Treads 7 | 2 2 3 Leg 1 | . . 1 Wheel 2 | . . 2 Hover . | . . . Flight . | . . . Utility 5 | 3 2 . Device 2 | 2 . . Storage 2 | 1 1 . Processor 1 | . 1 . Hackware . | . . . Protection . | . . . Artifact . | . . . Weapon 19 | 2 5 12 Energy Gun 2 | 1 1 . Energy Cannon 1 | . . 1 Ballistic Gun 5 | 1 1 3 Ballistic Cannon 1 | . . 1 Launcher 3 | . 1 2 Special Weapon 4 | . . 4 Impact Weapon . | . . . Slashing Weapon 3 | . 2 1 Piercing Weapon . | . . . Special Melee Weapon . | . . . Unidentified Prototypes . | . . . Parts Lost 7 | . 2 5 Power 2 | . 1 1 Propulsion 3 | . . 3 Utility 1 | . 1 . Weapon 1 | . . 1 Highest Loss Streak 3 | . 1 3 To Critical Strikes . | . . . Average Slot Usage (%) 99 | . 99 99 Engine 13 | . 13 13 Treads 24 | . 27 22 Leg 3 | . . 4 Storage 14 | . 14 14 Processor 13 | . 11 14 Ballistic Gun 17 | . 14 18 Ballistic Cannon 2 | . . 3 Special Weapon 2 | . . 3 Slashing Weapon 4 | . 10 1 Peak Build Rating 16 | 9 8 16 Average Rating 10 | 6 7 12 On Entrance 5 | . 7 8 Naked Turns . | . . . Heaviest Build 52 | 15 50 52 Greatest Support 40 | 40 40 40 Greatest Overweight (x) 2 | 1 2 2 Average Overweight (x) 1 | . . 1 Largest Inventory Capacity 20 | 8 20 20 Average Capacity 19 | 7 19 20 Most Carried 20 | 6 15 20 Average Carried 16 | 3 11 19 Final Capacity 20 | 8 20 20 Final Carried 20 | 6 15 20 Class Distribution -------------------- 99% | Mutant Dominant Class ---------------- Mutant | -10/Materials Mutant | -10/Subcaves Resources | -11 -10 -10 ----------- Run | Yrd Mat Sub Matter Collected 733 | 273 247 213 Remotely . | . . . Salvage Created 716 | 72 435 209 Parts 57 | 7 32 18 Haulers Intercepted . | . . . Recyclers Shooed . | . . . Parts Field Recycled . | . . . Retrieved Matter . | . . . Parts Self-Destructed 8 | . . 8 Prevented . | . . . Kills | -11 -10 -10 ------- Run | Yrd Mat Sub Combat Hostiles Destroyed 24 | . 12 12 Guns 15 | . 10 5 Cannons 2 | . . 2 AOE 7 | . 2 5 Classes Destroyed 6 | 1 4 1 Worker 3 | . 3 . Tunneler 3 | 3 . . Recycler 1 | . 1 . Swarmer 12 | . 6 6 Grunt 6 | . 6 . Subdweller 6 | . . 6 Best Kill Streak 6 | 1 6 3 Combat Bots Only 5 | . 5 3 Max Kills in Single Turn 3 | 1 2 3 Gunslinging . | . . . Exploded 3 | . 1 3 Melee . | . . . Uniques/NPCs Destroyed . | . . . Combat | -11 -10 -10 -------- Run | Yrd Mat Sub Hostile Shots Fired 157 | . 70 87 Missed 40 | . 15 25 Damage Taken 1433 | . 508 925 Core 255 | . 101 154 Absorbed by Shields . | . . . Core Remaining (%) 100 | 100 . . Volleys Fired 130 | 7 31 92 Largest 2 | 2 2 2 Hottest 120 | 60 60 120 Shots Fired 227 | 14 51 162 Gun 154 | 14 47 93 Cannon 24 | . . 24 Launcher 12 | . 4 8 Special 37 | . . 37 Kinetic 144 | 7 31 106 Thermal 48 | . . 48 Explosive 12 | . 4 8 Electromagnetic 23 | 7 16 . Robot Hit Streak 15 | 7 9 15 Robot Miss Streak 7 | 2 3 7 Penetration Max . | . . . Secondary Targets 1 | . 1 . Max Gunslinging Chain 1 | . 1 . Shots Hit Robots 95 | 10 37 48 Core Hits 46 | 3 23 20 Critical Kills . | . . . Critical Parts Destroyed . | . . . Critical Strikes . | . . . Melee Attacks 4 | . 4 . Impact . | . . . Slashing 4 | . 4 . Piercing . | . . . Sneak Attacks 1 | . 1 . Combat Hostiles . | . . . Follow-up Attacks . | . . . Damage Inflicted 2066 | 131 859 1076 Guns 845 | 125 451 269 Cannons 252 | . . 252 Explosions 854 | . 309 545 Melee 99 | . 99 . Ramming 6 | 6 . . Kinetic 646 | 57 286 303 Thermal 228 | . . 228 Explosive 854 | . 309 545 Electromagnetic 233 | 68 165 . Impact . | . . . Slashing 99 | . 99 . Piercing . | . . . Highest Corruption . | . . . Average Corruption . | . . . Corruption Purged . | . . . Corruption Blocked . | . . . Overload Shots . | . . . Overflow Damage 49 | . 27 22 Projectiles . | . . . Explosions 49 | . 27 22 Melee . | . . . Knockbacks . | . . . Impact . | . . . Kinetic . | . . . Secondary . | . . . Self-Inflicted Damage 30 | . 21 9 Shots 2 | . 1 1 Rammed 3 | 2 1 . Targets Rammed 3 | 2 1 . Kicked . | . . . Crushed . | . . . Highest Temperature 51 | . 51 20 Average Temperature 22 | . 28 9 Received Heat Transfer 171 | . 111 60 Siege Activations . | . . . Robots Corrupted . | . . . Combat Hostiles . | . . . Parts Fried . | . . . Impact Corruptions . | . . . Robots Melted . | . . . Combat Hostiles . | . . . Parts Melted . | . . . Heat Transferred 376 | . . 376 Parts Sabotaged . | . . . Parts Stolen . | . . . Parts Stripped . | . . . Power Chain Reactions . | . . . Alert | -11 -10 -10 ------- Run | Yrd Mat Sub Peak Influence 275 | 15 275 . Initial 9 | . 9 . Average 48 | 6 51 . Maximum Alert Level 1 | . 1 . Low Security (%) 94 | 100 93 . Level 1 5 | . 6 . Level 2 . | . . . Level 3 . | . . . Level 4 . | . . . Level 5 . | . . . High Security . | . . . Max Security . | . . . Squads Dispatched 1 | . 1 . Investigation 1 | . 1 . Extermination . | . . . Reinforcement . | . . . Assault . | . . . Garrison . | . . . Intercept . | . . . Searches Triggered . | . . . Construction Impeded . | . . . Haulers Reinforced . | . . . Active Scanning Responses . | . . . Cargo Convoy Interrupts . | . . . Stealth | -11 -10 -10 --------- Run | Yrd Mat Sub Distress Signals . | . . . Communications Jammed . | . . . Distress Signals . | . . . Times Spotted 36 | . 23 13 Peak Tracking Total 4 | . 4 3 Tactical Retreats . | . . . Traps | -11 -10 -10 ------- Run | Yrd Mat Sub Traps Triggered 3 | . 3 . Indirectly . | . . . Trap Hack Attempts . | . . . Triggered . | . . . Disarmed . | . . . Reprogrammed . | . . . Reused . | . . . Traps Extracted . | . . . Installed . | . . . Triggered . | . . . Machines | -11 -10 -10 ---------- Run | Yrd Mat Sub Machines Disabled 3 | . 2 1 Max in Single Turn 1 | . 1 1 Machines Repaired . | . . . Machines Dismantled . | . . . Machines Sabotaged . | . . . Overloaded Fab Kills . | . . . Hacking | -11 -10 -10 --------- Run | Yrd Mat Sub Machines Accessed 9 | . 7 2 Terminals 7 | . 7 . Fabricators . | . . . Repair Stations . | . . . Recycling Units . | . . . Scanalyzers . | . . . Garrison Access . | . . . Total Hacks 30 | . 17 13 Successful 21 | . 8 13 Failed 9 | . 9 . Catastrophic 1 | . 1 . Database Lockouts . | . . . Manual 13 | . 13 . Terminals 17 | . 17 . Fabricators . | . . . Repair Stations . | . . . Recycling Units . | . . . Scanalyzers . | . . . Garrison Access . | . . . Terminal Hacks 18 | . 5 13 Record 12 | . . 12 Locate Traps 1 | . 1 . Disarm Traps 1 | . 1 . Recall Investigation 1 | . 1 . Zone Layout 2 | . 2 . Derelict Proto ID Bank 1 | . . 1 Fabricator Hacks . | . . . Repair Station Hacks . | . . . Recycling Unit Hacks . | . . . Scanalyzer . | . . . Garrison Access Hacks . | . . . Unauthorized Hacks 3 | . 3 . Terminals 3 | . 3 . Assimilate 3 | . 3 . Fabricators . | . . . Repair Stations . | . . . Recycling Units . | . . . Scanalyzers . | . . . Garrison Access . | . . . Data Cores Recovered . | . . . Used . | . . . Hacking Detections 6 | . 6 . Full Trace Events . | . . . Feedback Events . | . . . Feedback Blocked . | . . . Robot Schematics Acquired . | . . . Robots Built . | . . . Authchips . | . . . Time . | . . . Total Robot Build Rating . | . . . Part Schematics Acquired . | . . . Parts Built . | . . . Authchips . | . . . Time . | . . . Total Part Build Rating . | . . . Parts Repaired . | . . . Time . | . . . Parts Recycled . | . . . Recycled Matter . | . . . Retrieved Matter . | . . . Retrieved Components . | . . . Parts Scanalyzed . | . . . Part Schematics Acquired . | . . . Parts Damaged . | . . . Bothacking | -11 -10 -10 ------------ Run | Yrd Mat Sub Used RIF Installer . | . . . Robots Hacked . | . . . Non-combat . | . . . Combat . | . . . Robot Hacks Applied . | . . . Relay Couplers Released . | . . . Fabnet Peak Effective % . | . . . Robots Rewired . | . . . Allies Hacked . | . . . Hacks Repelled . | . . . Allies | -11 -10 -10 -------- Run | Yrd Mat Sub Total Allies 1 | . 1 . Largest Group 1 | . 1 1 Highest-Rated Group 10 | . 10 10 Highest-Rated Ally 10 | . 10 10 Total Orders . | . . . Ally Attacks . | . . . Total Damage . | . . . Kills . | . . . Allies Corrupted . | . . . Allies Melted . | . . . Intel | -11 -10 -10 ------- Run | Yrd Mat Sub Robot Analysis Total . | . . . Derelict Logs Recovered 1 | . . 1 Drone Launches . | . . . Drone Recoveries . | . . . Exploration | -11 -10 -10 ------------- Run | Yrd Mat Sub Turns Passed 5947 | 111 1812 4024 Spaces Moved 1897 | 47 523 1327 Core 7 | 7 . . Treads 1809 | 40 523 1246 Legs . | . . . Wheels 81 | . . 81 Hover . | . . . Flight . | . . . Fastest Speed 50 | 50 160 130 Average Speed 260 | 147 229 276 Slowest Speed 360 | 160 320 360 Overloaded Moves . | . . . Propulsion Burnouts . | . . . Robots Hopped . | . . . Cave-ins Triggered . | . . . Exploration Rate (%) 55 | 4 89 74 Regions Visited 2 Branch Regions 1 Pre-discovered Areas 2 | . . 2 Known Exits Taken 1 | . 1 . Unknown Exits Taken 1 | 1 . . Scrap Searched 2 | . . 2 Spaces Dug . | . . . Terrain Destroyed 40 | . 6 34 Melee . | . . . Projectile 1 | . . 1 AOE 39 | . 6 33 Terrain Rammed . | . . . Walls Destroyed . | . . . Machines Disabled . | . . . Actions | -11 -10 -10 --------- Run | Yrd Mat Sub Total 2603 | 69 1072 1462 Wait 496 | . 489 7 Move 1896 | 47 522 1327 Hop . | . . . Pick Up 28 | 6 11 11 Fast Attach 14 | 7 6 1 Attach 6 | . 2 4 Detach . | . . . Swap 21 | 1 4 16 Drop 6 | . 2 4 Fire 130 | 7 31 92 Melee 4 | . 4 . Ram . | . . . Kick . | . . . Crush 2 | 1 1 . Escape Stasis . | . . . Rewire . | . . . Trap . | . . . Miscellaneous . | . . . Route ------- -11/Scrapyard -10/Materials (discovered 5 exits: [*Mat x3] / [*Min] / *Sub) -10/Subcaves (discovered 1 exit: *Mat) History --------- Turn | Location | Event 9 | -11/Scrapyard | Discovered new exit (range 15) 112 | -11/Scrapyard | Entered Materials 310 | -10/Materials | Build established: Mutant 502 | -10/Materials | Discovered new exit (range 9) 557 | -10/Materials | Discovered new exit (range 15) 735 | -10/Materials | Discovered new exit (range 16) 1311 | -10/Materials | Discovered new exit (range 8) 1900 | -10/Materials | Discovered new exit (range 6) 1921 | -10/Materials | Identified exit to Subcaves 1924 | -10/Materials | Entered Subcaves 1924 | -10/Subcaves | Accompanied by 1 ally 1982 | -10/Subcaves | Discovered new exit (range 5) 1989 | -10/Subcaves | Identified exit to Materials 1999 | -10/Subcaves | Visited Clippyterm 2006 | -10/Subcaves | Learned location of Section 7 (-2) 2242 | -10/Subcaves | Core integrity fell below 50% 2602 | -10/Subcaves | Lost 3 parts (1p1n1w) 2686 | -10/Subcaves | Shifting Twisted Machinery released Sub. Machine Gun 2688 | -10/Subcaves | Shifting Twisted Machinery released Spk. Treads 3149 | -10/Subcaves | A swath of the cavern ceiling suddenly collapsed 3928 | -10/Subcaves | A swath of the cavern ceiling suddenly collapsed 4253 | -10/Subcaves | Shifting Twisted Machinery released Hvy. Battle Rifle 4253 | -10/Subcaves | Shifting Twisted Machinery released Flamer 5382 | -10/Subcaves | Learned location of Zion (-6) 5758 | -10/Subcaves | Visited 4L-MR0's lab 5791 | -10/Subcaves | Found Power Bank 5937 | -10/Subcaves | Core integrity fell below 20% 5948 | -10/Subcaves | Destroyed by Z8-56K(R) with Subdweller Laser Last Messages --------------- something tells me that's where things went wrong. Still I'm glad they didn't listen, that way I'm not culpable for whatever they would've done with it. If we're lucky even some of the others got blasted, too. 05779_ Testing Chamber breached. 05787_ Dropped Flamer. 05789_ Subatomizers dissect the Flamer. 05790_ 4L-MR0 mumbles: "I'm surprised some of them are even willing to come in here given their fear of my usual visitors." 05791_ Acquired Power Bank. 05798_ 4L-MR0 mumbles: "Who knows where that last prototype ended up, probably tossed aside somewhere as if it were useless junk..." 05801_ Subatomizers dissect the Flamer. 05940_ B3-Q41(R) destroyed. 05946_ Subatomizers dissect the Disposable Heat Sink. [Achievement: This Is Interesting...] Map ----- +----------------------------------------------------+ | ?????????????????## #????????????????????????? | | ?????????????????# ##????????????????????????? | | ?????????????????# #?????????????????????????? | | ?????????????????# ##????????????????????????? | | ?????????????????## #????????????????????????? | | ??????????????????# #????????????????????????? | | ??????????????????# ##???????????????????????? | | ??????????????????## ###?????????????????????? | | ???????????????????## #?????????????????????? | | ???????????????????# ##????????????????????? | | ???????????????????## #????????????????????? | | ????????????????????# #????????????????????? | | ???????????????????## #????????????????????? | | ???????????????????# ##????????????????????? | | ???????????????????## ##??????????????????### | | ???????????????????## #??????????????????# | | ???????????????????# ##???????????????????# | | ???????????????????# #??????????????????## | | ??????????????????## ##????????????????### | | ???????????????# ## ##????????????????# | | ??????????????## #????????????????## | | ??????????????# ## ##?????????????????# | | ??????????????# ## ##????????????????# | | ??????????????# #???????????????## | | ??????????????## #???????????????# | | ???????????????##""" @ ##??????????????# | | ????????????????###"!!###???????????????# | | ??????????????????##R##?????????????????# | | ???????????????????"#???????????????????# # | | ?????????????????? #????????????????????# #? | | ????????????????? ?????????????????????## #?? | | ?????????????????"???????????????????????##??? | | ???????????????? "???????????????????????????? | | ???????????????# ????????????????????????????? | | ?????????????????????????????????????????????? | | ?????????????????????????????????????????????? | | ?????????????????????????????????????????????? | | ?????????????????????????????????????????????? | | ?????????????????????????????????????????????? | | ?????????????????????????????????????????????? | | ?????????????????????????????????????????????? | | ?????????????????????????????????????????????? | | ?????????????????????????????????????????????? | | ?????????????????????????????????????????????? | | ?????????????????????????????????????????????? | | ?????????????????????????????????????????????? | | ?????????????????????????????????????????????? | | ?????????????????????????????????????????????? | | ?????????????????????????????????????????????? | | ?????????????????????????????????????????????? | +----------------------------------------------------+ Best States ------------- Heat Dissipation 25 Energy Generation 15 Energy Capacity 250 Matter Stores 300 Matter Capacity 300 Sight Range 16 Terrain Scan Range 16 Terrain Scan Density 10 Evasion (%) 40 Recoil Reduction 2 Item Schematics ----------------- None Robot Schematics ------------------ None Fabricated ------------ Nothing Alien Tech Used ----------------- None Achievements -------------- This Is Interesting... Challenges ------------ None Game ------ Seed EncryptedDisruptionPlatform Manual? 0 Play Time 00:30:21 Cumulative 21.2 hours Start 2024.10.17 @ 15:10:49 End 2024.10.17 @ 15:42:10 Sessions 1 Manual Loads 0 Difficulty Rogue Special Mode None Game No. 30 Rogue 30 Adventurer 0 Explorer 0 Win Type - Total 0 Types 0/0/0/0/0/0/0/0/0 Lore% 25 Gallery% 27 Achievement% 23 Wizard Run 0 Options --------- Layout 1 ASCII 0 Keyboard 0 Movement Numpad Keybinds 0 Fullscreen 1 Font 24/Smallcaps Map View 50x35 Zoom Use 0% Tactical HUD 1 Map Filters NONE Filters NONE Steam 1 RUN: c1fe930a-f2f2-4070-8858-51ded4d6efcf